fUSD/lending_fUSD_20260322
["ID","MTS","AMOUNT","RATE_DAILY","PERIOD"]
[408724979,1774173048687,-25151.36232664,0.00013073,2]
[408724980,1774173048696,-11019.18287486,0.00013081,2]
[408724981,1774173048707,-924.17,0.00013124,2]
[408724982,1774173048716,-2000.0,0.00013216,2]
[408724983,1774173048726,-924.17,0.00013398,2]
[408724984,1774173048746,-200.0,0.00013398,2]
[408724985,1774173048758,-500.0,0.00013416,2]
[408724986,1774173048768,-1229.01223273,0.00013416,2]
[408724987,1774173048778,-510.25846451,0.00013416,2]
[408724988,1774173048788,-237.6846,0.000135,2]
[408724989,1774173048799,-25151.36232664,0.00013544,2]
[408724990,1774173048809,-11019.18287486,0.00013551,2]
[408724991,1774173048820,-150.0,0.00013664,2]
[408724992,1774173048832,-924.17,0.00013672,2]
[408724993,1774173048842,-521.60337023,0.00013698,2]
[408724994,1774173048852,-500.0,0.00013698,2]
[408724995,1774173048862,-500.0,0.00013698,2]
[408724996,1774173048872,-500.0,0.00013698,2]
[408724997,1774173048881,-500.0,0.00013698,2]
[408724998,1774173048890,-500.0,0.00013698,2]
[408724999,1774173048901,-500.0,0.00013698,2]
[408725000,1774173048910,-500.0,0.00013698,2]
[408725001,1774173048919,-512.39065529,0.00013698,2]
[408725002,1774173048928,-500.0,0.00013698,2]
[408725003,1774173048937,-500.0,0.00013698,2]
[408725004,1774173048946,-500.0,0.00013698,2]
[408725005,1774173048955,-500.0,0.00013698,2]
[408725006,1774173048964,-500.0,0.00013698,2]
[408725007,1774173048974,-279.58766334,0.00013698,2]
[408725008,1774173048983,-500.0,0.00013698,2]
[408725009,1774173048994,-500.0,0.00013698,2]
[408725010,1774173049005,-485.30482118,0.00013698,2]
[408725011,1774173049016,-500.0,0.00013698,2]
[408725012,1774173049026,-364.57678169,0.00013698,2]
[408725013,1774173049036,-500.0,0.00013698,2]
[408725014,1774173049045,-500.0,0.00013698,2]
[408725015,1774173049054,-500.0,0.00013698,2]
[408725016,1774173049064,-500.0,0.00013698,2]
[408725017,1774173049074,-500.0,0.00013698,2]
[408725018,1774173049084,-500.0,0.00013698,2]
[408725019,1774173049096,-500.0,0.00013698,2]
[408725020,1774173049106,-500.0,0.00013698,2]
[408725021,1774173049115,-500.0,0.00013698,2]
[408725022,1774173049127,-500.0,0.00013698,2]
[408725023,1774173049137,-416.73502406,0.00013698,2]
[408725024,1774173049147,-500.0,0.00013698,2]
[408725025,1774173049157,-507.02157658,0.00013698,2]
[408725026,1774173049166,-493.84764022,0.00013698,2]
[408725027,1774173049175,-500.0,0.00013698,2]
[408725028,1774173049184,-289.3873478,0.00013698,2]
[408725029,1774173049194,-500.0,0.00013698,2]
[408725030,1774173049203,-500.0,0.00013698,2]
[408725031,1774173049212,-500.0,0.00013698,2]
[408725032,1774173049221,-500.0,0.00013698,2]
[408725033,1774173049231,-513.07375623,0.00013698,2]
[408725034,1774173049241,-334.57080229,0.00013698,2]
[408725035,1774173049251,-500.0,0.00013698,2]
[408725036,1774173049260,-514.93719248,0.00013698,2]
[408725037,1774173049269,-500.0,0.00013698,2]
[408725038,1774173049279,-500.0,0.00013698,2]
[408725039,1774173049291,-500.0,0.00013698,2]
[408725040,1774173049301,-607.96438655,0.00013698,2]
[408725041,1774173049310,-3124.99,0.00013698,2]
[408725042,1774173049319,-3124.99,0.00013698,2]
[408725043,1774173049328,-3124.99,0.00013698,2]
[408725044,1774173049338,-3124.99,0.00013698,2]
[408725045,1774173049348,-3124.99,0.00013698,2]
[408725046,1774173049357,-3124.99,0.00013698,2]
[408725047,1774173049366,-3124.99,0.00013698,2]
[408725048,1774173049375,-3124.99,0.00013698,2]
[408725049,1774173049384,-3124.99,0.00013698,2]
[408725050,1774173049394,-3124.99,0.00013698,2]
[408725051,1774173049404,-3124.99,0.00013698,2]
[408725052,1774173049413,-3124.99,0.00013698,2]
[408725053,1774173049423,-3124.99,0.00013698,2]
[408725054,1774173049432,-3124.99,0.00013698,2]
[408725055,1774173049441,-3124.99,0.00013698,2]
[408725056,1774173049450,-3124.99,0.00013698,2]
[408725057,1774173049459,-3124.99,0.00013698,2]
[408725058,1774173049469,-3124.99,0.00013698,2]
[408725059,1774173049478,-521.23273696,0.00013698,2]
[408725060,1774173049488,-500.0,0.00013698,2]
[408725061,1774173049497,-500.0,0.00013698,2]
[408725062,1774173049506,-500.0,0.00013698,2]
[408725063,1774173049515,-513.40658707,0.00013698,2]
[408725064,1774173049525,-500.0,0.00013698,2]
[408725065,1774173049534,-500.0,0.00013698,2]
[408725066,1774173049543,-500.0,0.00013698,2]
[408725067,1774173049553,-500.0,0.00013698,2]
[408725068,1774173049562,-500.0,0.00013698,2]
[408725069,1774173049571,-587.11880286,0.00013698,2]
[408725070,1774173049581,-500.0,0.00013698,2]
[408725071,1774173049590,-500.0,0.00013698,2]
[408725072,1774173049600,-500.0,0.00013698,2]
[408725073,1774173049609,-500.0,0.00013698,2]
[408725074,1774173049618,-500.0,0.00013698,2]
[408725075,1774173049627,-500.0,0.00013698,2]
[408725076,1774173049637,-500.0,0.00013698,2]
[408725077,1774173049646,-500.0,0.00013698,2]
[408725078,1774173049655,-500.0,0.00013698,2]
[408725079,1774173049668,-500.0,0.00013698,2]
[408725080,1774173049678,-500.0,0.00013698,2]
[408725081,1774173049687,-500.0,0.00013698,2]
[408725082,1774173049697,-500.0,0.00013698,2]
[408725083,1774173049707,-500.0,0.00013698,2]
[408725084,1774173049716,-500.0,0.00013698,2]
[408725085,1774173049726,-229.59071084,0.00013698,2]
[408725086,1774173049734,-500.0,0.00013698,2]
[408725087,1774173049743,-500.0,0.00013698,2]
[408725088,1774173049753,-500.0,0.00013698,2]
[408725089,1774173049763,-500.0,0.00013698,2]
[408725090,1774173049772,-500.0,0.00013698,2]
[408725091,1774173049782,-500.0,0.00013698,2]
[408725092,1774173049791,-500.0,0.00013698,2]
[408725093,1774173049800,-500.0,0.00013698,2]
[408725094,1774173049809,-500.0,0.00013698,2]
[408725095,1774173049821,-500.0,0.00013698,2]
[408725096,1774173049831,-500.0,0.00013698,2]
[408725097,1774173049840,-194.24175417,0.00013698,2]
[408725098,1774173049850,-500.0,0.00013698,2]
[408725099,1774173049859,-500.0,0.00013698,2]
[408725100,1774173049869,-500.0,0.00013698,2]
[408725101,1774173049879,-500.0,0.00013698,2]
[408725102,1774173049888,-500.0,0.00013698,2]
[408725103,1774173049898,-500.0,0.00013698,2]
[408725104,1774173049908,-500.0,0.00013698,2]
[408725105,1774173049918,-500.0,0.00013698,2]
[408725106,1774173049928,-571.85993226,0.00013698,2]
[408725107,1774173049937,-562.1,0.00013699,2]
[408725108,1774173049947,-975.2,0.00013699,2]
[408725109,1774173049957,-500.0,0.00013699,2]
[408725110,1774173049966,-347.47666717,0.00013699,2]
[408725111,1774173049976,-500.0,0.00013699,2]
[408725112,1774173049985,-500.0,0.00013699,2]
[408725113,1774173049995,-500.0,0.00013699,2]
[408725114,1774173050004,-500.0,0.00013699,2]
[408725115,1774173050015,-500.55967201,0.00013699,2]
[408725116,1774173050024,-500.0,0.00013699,2]
[408725117,1774173050034,-500.0,0.00013699,2]
[408725118,1774173050049,-500.0,0.00013699,2]
[408725119,1774173050059,-500.0,0.00013699,2]
[408725120,1774173050068,-500.0,0.00013699,2]
[408725121,1774173050078,-500.70382414,0.00013699,2]
[408725122,1774173050088,-500.74920901,0.00013699,2]
[408725123,1774173050098,-500.43058459,0.00013699,2]
[408725124,1774173050108,-500.0,0.00013699,2]
[408725125,1774173050117,-500.4848322,0.00013699,2]
[408725126,1774173050127,-500.0,0.00013699,2]
[408725127,1774173050138,-500.0,0.00013699,2]
[408725128,1774173050148,-500.0,0.00013699,2]
[408725129,1774173050157,-500.44177829,0.00013699,2]
[408725130,1774173050167,-390.12270077,0.00013699,2]
[408725131,1774173050177,-500.0,0.00013699,2]
[408725132,1774173050187,-500.0,0.00013699,2]
[408725133,1774173050199,-825.33,0.000137,2]
[408725134,1774173050209,-434.33,0.000137,2]
[408725135,1774173050218,-2290.08,0.000137,2]
[408725136,1774173050227,-1347.8,0.000137,2]
[408725137,1774173050236,-1009.38949621,0.00013764,2]
[408725138,1774173050246,-500.0,0.00013845,2]
[408725139,1774173050255,-500.0,0.00013864,2]
[408725140,1774173050265,-500.0,0.00013864,2]
[408725141,1774173050274,-433.0,0.00013898,2]
[408725142,1774173050284,-587.0,0.00013941,2]
[408725143,1774173050294,-924.17,0.00013946,2]
[408725144,1774173050303,-200.0,0.00013946,2]
[408725145,1774173050312,-2351.0,0.00013985,2]
[408725146,1774173050322,-890.92,0.00014,2]
[408725147,1774173050332,-519.0,0.00014,2]
[408725148,1774173050341,-150.49957673,0.00014016,2]
[408725149,1774173050350,-25151.36232664,0.00014016,2]
[408725150,1774173050360,-11019.18287486,0.00014021,2]
[408725151,1774173050369,-500.0,0.00014115,2]
[408725152,1774173050380,-60000.0,0.00014115,2]
[408725153,1774173050390,-155.0,0.00014167,3]
[408725154,1774173050399,-186.555441,0.00014197,7]
[408725155,1774173050408,-160.0,0.00014201,7]
[408725156,1774173050418,-184.891211,0.00014201,7]
[408725157,1774173050431,-236.730444,0.00014201,7]
[408725158,1774173050441,-160.0,0.00014201,7]
[408725159,1774173050451,-924.17,0.0001422,2]
[408725160,1774173050460,-998.52273734,0.00014247,2]
[408725161,1774173050471,-1001.53007131,0.00014247,2]
[408725162,1774173050481,-1000.0,0.00014247,2]
[408725163,1774173050491,-1000.0,0.00014247,2]
[408725164,1774173050501,-500.67270798,0.00014247,2]
[408725165,1774173050511,-713.64434561,0.00014247,2]
[408725166,1774173050520,-505.99225948,0.00014247,2]
[408725167,1774173050531,-501.4021552,0.00014247,2]
[408725168,1774173050540,-1000.0,0.00014247,2]
[408725169,1774173050549,-1000.0,0.00014247,2]
[408725170,1774173050559,-1000.0,0.00014247,2]
[408725171,1774173050568,-502.54227332,0.00014247,2]
[408725172,1774173050578,-1000.0,0.00014247,2]
[408725173,1774173050588,-1000.0,0.00014247,2]
[408725174,1774173050597,-1000.0,0.00014247,2]
[408725175,1774173050607,-975.2,0.00014384,2]
[408725176,1774173050617,-1000.0,0.00014393,2]
[408725177,1774173050626,-1000.0,0.00014412,2]
[408725178,1774173050636,-25151.36232664,0.00014487,2]
[408725179,1774173050646,-11019.18287486,0.00014491,2]
[408725180,1774173050848,-924.17,0.00014494,2]
[408725181,1774173050858,-200.0,0.00014494,2]
[408725182,1774173050870,-476.285413,0.00014659,7]
[408725183,1774173050881,-467.364269,0.00014659,7]
[408725184,1774173050890,-167.403325,0.00014661,7]
[408725185,1774173050903,-924.24612025,0.00014768,2]
[408725186,1774173050913,-1500.0,0.00014795,2]
[408725187,1774173050922,-759.99072283,0.00014795,2]
[408725188,1774173050932,-222.68518983,0.00014795,2]
[408725189,1774173050942,-1158.78645597,0.00014795,2]
[408725190,1774173050951,-1500.0,0.00014795,2]
[408725191,1774173050961,-1500.0,0.00014795,2]
[408725192,1774173050971,-25151.36232664,0.00014958,2]
[408725193,1774173050981,-1573.03260881,0.0001496,2]
[408725194,1774173050991,-11019.18287486,0.0001496,2]
[408725195,1774173051000,-787.10595,0.00015,2]
[408725196,1774173051009,-211.43898215,0.00015042,2]
[408725197,1774173051019,-244.501002,0.00015068,2]
[408725198,1774173051029,-268.67,0.00015068,2]
[408725199,1774173051038,-975.2,0.00015068,2]
[408725200,1774173051048,-1019.81,0.000151,2]
[408725201,1774173051057,-698.79,0.000151,2]
[408725202,1774173051067,-736.0,0.0001518,2]
[408725203,1774173051076,-3124.99,0.00015195,2]
[408725204,1774173051085,-250.0,0.00015259,2]
[408725205,1774173051095,-823.0,0.00015311,2]
[408725206,1774173051105,-209.15946236,0.00015342,2]
[408725207,1774173051115,-2000.0,0.00015342,2]
[408725208,1774173051125,-1500.0,0.00015342,2]
[408725209,1774173051137,-152.0,0.00015375,3]
[408725210,1774173051148,-3292.0,0.00015384,2]
[408725211,1774173051158,-25151.36232664,0.00015429,2]
[408725212,1774173051167,-11019.18287486,0.0001543,2]
[408725213,1774173051177,-152.5087,0.000155,2]
[408725214,1774173051187,-4000.0,0.00015507,2]
[408725215,1774173051196,-5962.06,0.00015569,2]
[408725216,1774173051206,-1586.2600759,0.00015634,2]
[408725217,1774173051216,-203.0,0.0001564,2]
[408725218,1774173051225,-975.2,0.00015753,2]
[408725219,1774173051234,-204.451999,0.00015777,2]
[408725220,1774173051243,-1100.0,0.000158,5]
[408725221,1774173051253,-52077.30317571,0.0001584,2]
[408725222,1774173051262,-562.1,0.00015862,2]
[408725223,1774173051271,-4000.0,0.00015895,2]
[408725224,1774173051281,-25151.36232664,0.000159,2]
[408725225,1774173051290,-800.0,0.000159,5]
[408725226,1774173051300,-11019.18287486,0.000159,2]
[408725227,1774173051310,-200.0,0.000159,5]
[408725228,1774173051319,-465.39589387,0.0001599,2]
[408725229,1774173051329,-465.39589387,0.0001599,2]
[408725230,1774173051339,-3124.99,0.00015999,2]
[408725231,1774173051349,-3124.99,0.00015999,2]
[408725232,1774173051359,-3124.99,0.00015999,2]
[408725233,1774173051368,-3124.99,0.00015999,2]
[408725234,1774173051378,-3125.11,0.00015999,2]
[408725235,1774173051387,-2695699.36891491,0.00016,2]
[408725236,1774173051397,-287741.98783875,0.00016,2]
[408725237,1774173051407,-434.35531069,0.00016,2]
[408725238,1774173051416,-151.0,0.00016,2]
[408725239,1774173051426,-151.0,0.00016,2]
[408725240,1774173051435,-151.0,0.00016,2]
[408725241,1774173051444,-151.0,0.00016,2]
[408725242,1774173051454,-946.59832,0.00016,2]
[408725243,1774173051463,-946.59832,0.00016,2]
[408725244,1774173051473,-946.59832,0.00016,2]
[408725245,1774173051482,-151.0,0.00016,2]
[408725246,1774173051492,-946.59832,0.00016,2]
[408725247,1774173051501,-151.0,0.00016,2]
[408725248,1774173051510,-151.0,0.00016,2]
[408725249,1774173051519,-151.0,0.00016,2]
[408725250,1774173051528,-556.253932,0.00016,2]
[408725251,1774173051537,-556.253932,0.00016,2]
[408725252,1774173051546,-556.253932,0.00016,2]
[408725253,1774173051556,-556.253932,0.00016,2]
[408725254,1774173051565,-214.998497,0.00016,2]
[408725255,1774173051574,-214.998497,0.00016,2]
[408725256,1774173051584,-214.998497,0.00016,2]
[408725257,1774173051593,-214.998497,0.00016,2]
[408725258,1774173051602,-151.0,0.00016,2]
[408725259,1774173051611,-151.0,0.00016,2]
[408725260,1774173051620,-168.04,0.00016056,2]
[408725261,1774173051630,-288.0,0.000161,2]
[408725262,1774173051639,-9999.99,0.00016116,2]
[408725263,1774173051648,-200691.77,0.000162,5]
[408725264,1774173051657,-555.0,0.000162,2]
[408725265,1774173051667,-4000.0,0.00016282,2]
[408725266,1774173051677,-3486.67373915,0.00016433,2]
[408725267,1774173051686,-500.0,0.00016438,2]
[408725268,1774173051696,-500.0,0.00016438,2]
[408725269,1774173051705,-500.0,0.00016438,2]
[408725270,1774173051714,-500.0,0.00016438,2]
[408725271,1774173051723,-500.0,0.00016438,2]
[408725272,1774173051732,-500.0,0.00016438,2]
[408725273,1774173051741,-500.0,0.00016438,2]
[408725274,1774173051750,-500.0,0.00016438,2]
[408725275,1774173051759,-500.0,0.00016438,2]
[408725276,1774173051768,-151.0,0.00016438,2]
[408725277,1774173051778,-151.0,0.00016438,2]
[408725278,1774173051788,-268.67,0.00016438,2]
[408725279,1774173051797,-302.657938,0.00016438,2]
[408725280,1774173051807,-302.657938,0.00016438,2]
[408725281,1774173051817,-302.657938,0.00016438,2]
[408725282,1774173051830,-302.657938,0.00016438,2]
[408725283,1774173051839,-975.2,0.00016438,2]
[408725284,1774173051848,-2000.0,0.0001646,2]
[408725285,1774173051859,-555.0,0.000165,2]
[408725286,1774173051869,-150.97,0.00016539,2]
[408725287,1774173051878,-239.0,0.0001654,2]
[408725288,1774173051887,-1252.0,0.00016579,2]
[408725289,1774173051909,-155.0,0.00016583,3]
[408725290,1774173051920,-160.0,0.00016601,2]
[408725291,1774173051930,-979.16666667,0.00016601,2]
[408725292,1774173051940,-160.0,0.00016604,2]
[408725293,1774173051951,-4000.0,0.0001667,2]
[408725294,1774173051961,-166.82,0.00016712,2]
[408725295,1774173051971,-434.33,0.000168,2]
[408725296,1774173051981,-1347.8,0.000168,2]
[408725297,1774173051991,-1152.0,0.00016816,2]
[408725298,1774173052001,-150.0,0.0001683,7]
[408725299,1774173052011,-2000.0,0.000169,2]
[408725300,1774173052021,-4609.0,0.00016922,2]
[408725301,1774173052030,-277.15195125,0.00016999,2]
[408725302,1774173052039,-1195.23419118,0.00017,30]
[408725303,1774173052049,-300.0,0.00017,2]
[408725304,1774173052059,-388923.18831687,0.00017,2]
[408725305,1774173052069,-825.33,0.00017,2]
[408725306,1774173052079,-2290.08,0.00017,2]
[408725307,1774173052089,-234.649097,0.00017041,7]
[408725308,1774173052099,-201.560994,0.00017041,7]
[408725309,1774173052108,-4000.0,0.00017058,2]
[408725310,1774173052118,-15973.3757962,0.000171,2]
[408725311,1774173052128,-150.97,0.00017175,2]
[408725312,1774173052138,-1521.0,0.00017339,2]
[408725313,1774173052147,-1521.0,0.00017339,2]
[408725314,1774173052156,-151.0,0.00017339,2]
[408725315,1774173052166,-456.12817696,0.00017339,2]
[408725316,1774173052176,-151.0,0.00017339,2]
[408725317,1774173052186,-222.90548411,0.00017339,2]
[408725318,1774173052195,-153.78487307,0.00017339,2]
[408725319,1774173052205,-226.61972177,0.00017339,2]
[408725320,1774173052215,-153.0,0.00017339,2]
[408725321,1774173052225,-239.0021021,0.00017339,2]
[408725322,1774173052234,-297.97,0.00017347,2]
[408725323,1774173052243,-1568.0,0.0001742,2]
[408725324,1774173052253,-890.92,0.000175,2]
[408725325,1774173052263,-230.29,0.0001751,2]
[408725326,1774173052273,-1585.87242368,0.00017567,2]
[408725327,1774173052283,-500.0,0.00017616,2]
[408725328,1774173052293,-1019.81,0.000178,2]
[408725329,1774173052302,-1568.0,0.0001798,2]
[408725330,1774173052312,-562.1,0.00018024,2]
[408725331,1774173052321,-2129.0,0.00018106,2]
[408725332,1774173052332,-2748.66,0.00018176,2]
[408725333,1774173052342,-1613.0,0.00018468,2]
[408725334,1774173052351,-1028.64972238,0.00018495,5]
[408725335,1774173052361,-6453.0,0.00018614,2]
[408725336,1774173052371,-442.75,0.00018623,2]
[408725337,1774173052381,-4166.66,0.00018794,2]
[408725338,1774173052391,-651.02,0.00018794,2]
[408725339,1774173052400,-500.0,0.00018794,2]
[408725340,1774173052410,-800.0,0.000189,6]
[408725341,1774173052419,-350.0,0.00019,2]
[408725342,1774173052429,-155.0,0.00019,3]
[408725343,1774173052439,-152.0,0.00019,3]
[408725344,1774173052448,-2403.0,0.0001916,2]
[408725345,1774173052458,-150.99,0.00019178,2]
[408725346,1774173052467,-150.4393191,0.00019178,2]
[408725347,1774173052476,-80687.42,0.000192,2]
[408725348,1774173052486,-155.0595,0.000193,2]
[408725349,1774173052495,-2403.0,0.0001946,2]
[408725350,1774173052504,-161.0,0.0001948,2]
[408725351,1774173052514,-171.81,0.00019597,14]
[408725352,1774173052523,-1568.0,0.000196,2]
[408725353,1774173052532,-200.0,0.00019726,2]
[408725354,1774173052542,-358.0,0.00019774,2]
[408725355,1774173052551,-825.33,0.000198,7]
[408725356,1774173052560,-434.33,0.000198,2]
[408725357,1774173052570,-1347.8,0.000198,2]
[408725358,1774173052580,-165.827057,0.00019881,7]
[408725359,1774173052589,-199.26875795,0.0002,120]
[408725360,1774173052598,-261.45711386,0.0002,30]
[408725361,1774173052608,-168.05,0.0002007,2]
[408725362,1774173052617,-230.29,0.00020137,2]
[408725363,1774173052626,-562.1,0.00020187,2]
[408725364,1774173052636,-2258.0,0.00020283,2]
[408725365,1774173052645,-210.42706,0.00020298,7]
[408725366,1774173052655,-2290.08,0.000203,2]
[408725367,1774173052666,-6672.0,0.00020476,2]
[408725368,1774173052675,-297.97,0.00020493,2]
[408725369,1774173052685,-890.92,0.000209,2]
[408725370,1774173052695,-400.0,0.00021,2]
[408725371,1774173052705,-300.14839608,0.00021,120]
[408725372,1774173052715,-12604.1,0.00021068,2]
[408725373,1774173052724,-168.0,0.00021233,2]
[408725374,1774173052734,-281.578917,0.00021301,7]
[408725375,1774173052743,-241.873193,0.00021301,7]
[408725376,1774173052753,-3486.67373915,0.00021365,2]
[408725377,1774173052763,-439.0,0.0002137,2]
[408725378,1774173052772,-155.0,0.00021417,3]
[408725379,1774173052781,-150.0,0.0002148,2]
[408725380,1774173052790,-1938.00943329,0.0002148,2]
[408725381,1774173052800,-150.0,0.0002148,2]
[408725382,1774173052812,-2939.95031507,0.0002148,2]
[408725383,1774173052826,-150.0,0.0002148,2]
[408725384,1774173052835,-4667.32714779,0.0002148,2]
[408725385,1774173052847,-1019.81,0.000215,2]
[408725386,1774173052859,-5962.06,0.00021796,2]
[408725387,1774173052872,-3055.64,0.00021918,2]
[408725388,1774173052882,-5000.0,0.00021918,2]
[408725389,1774173052892,-1000.0,0.00021918,2]
[408725390,1774173052905,-620.0,0.00021918,2]
[408725391,1774173052916,-500.0,0.00021918,2]
[408725392,1774173052926,-661.0,0.00021927,10]
[408725393,1774173052937,-613.0,0.00021927,10]
[408725394,1774173052948,-924.80475936,0.00022,2]
[408725395,1774173052959,-1498.68771663,0.00022,30]
[408725396,1774173052969,-245.0,0.00022,2]
[408725397,1774173052979,-355.08,0.00022,30]
[408725398,1774173052988,-4166.66,0.00022002,2]
[408725399,1774173052998,-4166.66,0.00022002,2]
[408725400,1774173053008,-4166.66,0.00022002,2]
[408725401,1774173053019,-4166.66,0.00022002,2]
[408725402,1774173053030,-4166.82,0.00022002,2]
[408725403,1774173053040,-651.02,0.00022002,2]
[408725404,1774173053050,-651.02,0.00022002,2]
[408725405,1774173053060,-651.02,0.00022002,2]
[408725406,1774173053070,-651.02,0.00022002,2]
[408725407,1774173053079,-651.1387903,0.00022002,2]
[408725408,1774173053089,-500.0,0.00022002,2]
[408725409,1774173053099,-500.0,0.00022002,2]
[408725410,1774173053109,-500.0,0.00022002,2]
[408725411,1774173053119,-500.0,0.00022002,2]
[408725412,1774173053128,-218.36,0.00022002,2]
[408725413,1774173053138,-150.99901807,0.00022178,2]
[408725414,1774173053147,-519.0,0.0002225,9]
[408725415,1774173053157,-3162.0,0.00022276,2]
[408725416,1774173053167,-562.1,0.0002235,2]
[408725417,1774173053177,-152.0,0.00022625,3]
[408725418,1774173053186,-2626.04,0.0002274,2]
[408725419,1774173053196,-434.33,0.00023,7]
[408725420,1774173053205,-245.0,0.00023,2]
[408725421,1774173053215,-157.6529,0.000232,2]
[408725422,1774173053225,-825.33,0.000233,7]
[408725423,1774173053234,-1347.8,0.000233,7]
[408725424,1774173053244,-80687.42,0.000234,7]
[408725425,1774173053254,-160.0,0.000234,7]
[408725426,1774173053263,-1585.87242368,0.00023463,2]
[408725427,1774173053273,-230.29,0.00023639,2]
[408725428,1774173053283,-155.0,0.00023833,3]
[408725429,1774173053293,-1205.73,0.00023836,2]
[408725430,1774173053302,-1038.57,0.00023836,2]
[408725431,1774173053311,-300.48,0.00023836,2]
[408725432,1774173053321,-2290.08,0.000239,2]
[408725433,1774173053331,-979.16666667,0.00024,7]
[408725434,1774173053340,-160.0,0.00024,7]
[408725435,1774173053350,-245.0,0.00024,2]
[408725436,1774173053359,-165.54,0.00024204,2]
[408725437,1774173053368,-890.92,0.000244,7]
[408725438,1774173053378,-4225.0,0.00024465,2]
[408725439,1774173053387,-562.1,0.00024513,2]
[408725440,1774173053397,-318.48764684,0.0002465,120]
[408725441,1774173053407,-874.41,0.00024658,2]
[408725442,1774173053416,-1000.0,0.00024658,2]
[408725443,1774173053425,-150.0,0.00024658,2]
[408725444,1774173053435,-1000.0,0.00024664,9]
[408725445,1774173053444,-1000.0,0.00024664,9]
[408725446,1774173053453,-1000.0,0.00024664,9]
[408725447,1774173053463,-1000.0,0.00024664,9]
[408725448,1774173053472,-1000.0,0.00024664,9]
[408725449,1774173053481,-1000.0,0.00024664,9]
[408725450,1774173053490,-1000.0,0.00024664,9]
[408725451,1774173053500,-1000.0,0.00024664,9]
[408725452,1774173053509,-979.16666667,0.000247,7]
[408725453,1774173053519,-165.54,0.0002477,2]
[408725454,1774173053528,-150.0,0.00024899,2]
[408725455,1774173053537,-150.0,0.00024899,2]
[408725456,1774173053546,-259.4205525,0.00024899,2]
[408725457,1774173053555,-151.0,0.000249,2]
[408725458,1774173053566,-151.0,0.000249,2]
[408725459,1774173053579,-151.0,0.000249,2]
[408725460,1774173053588,-151.0,0.000249,2]
[408725461,1774173053598,-151.0,0.000249,2]
[408725462,1774173053607,-556.253932,0.000249,2]
[408725463,1774173053617,-556.253932,0.000249,2]
[408725464,1774173053626,-556.253932,0.000249,2]
[408725465,1774173053635,-556.253932,0.000249,2]
[408725466,1774173053644,-214.998497,0.000249,2]
[408725467,1774173053654,-214.998497,0.000249,2]
[408725468,1774173053663,-214.998497,0.000249,2]
[408725469,1774173053673,-214.998497,0.000249,2]
[408725470,1774173053682,-302.657938,0.000249,2]
[408725471,1774173053691,-302.657938,0.000249,2]
[408725472,1774173053700,-302.657938,0.000249,2]
[408725473,1774173053709,-302.657938,0.000249,2]
[408725474,1774173053719,-151.0,0.000249,2]
[408725475,1774173053730,-151.0,0.000249,2]
[408725476,1774173053741,-216.0,0.0002493,30]
[408725477,1774173053752,-1336.26649901,0.00025,4]
[408725478,1774173053763,-221.85882281,0.00025,120]